{"text_format":"3","workbook":"xlsx","n_sheets":3,"sheets":["Start","Gavebudsjett og sporing","Data"],"not_rendered":{"charts":1,"defined_names":1},"read":"whole","date_system":"1900"}

{"sheet":"Start","index":0,"n_rows":7,"n_cols":2,"rows_kept":7}
[null,"Om malen"]
[null,"Bruk denne malen til å logge gavekjøpene og spore dem mot budsjettet."]
[null,"Skriv inn navnene på familie og venner, gaveartikler, budsjetterte og brukte beløp og notater i tabellen, og velg anledning og arrangementmåned."]
[null,"Månedlig oversiktsdiagram oppdateres automatisk."]
[null,"Obs! "]
[null,"Du finner flere instruksjoner i kolonne A i regnearket GAVEBUDSJETT OG SPORING. Denne teksten har blitt skjult med vilje. Hvis du vil fjerne teksten, velger du kolonne A og deretter SLETT. Hvis du vil vise teksten, velger du kolonne A og endrer deretter skriftfarge."]
[null,"Hvis du vil finne ut mer om tabellen, trykker du på SKIFT og deretter F10 i en tabell. Velg alternativet TABELL, og velg deretter ALTERNATIV TEKST."]

{"sheet":"Gavebudsjett og sporing","index":1,"n_rows":10,"n_cols":13,"rows_kept":10,"merged":[[0,1,0,4],[0,5,0,12],[1,1,1,2],[2,1,2,12],[3,1,3,3]]}
["Opprett et personlig gavebudsjett og sporing i dette regnearket. Tittelen på regnearket er i cellen til høyre og tips er i celle F1. Du finner nyttige instruksjoner om hvordan du bruker dette regnearket i cellene i denne kolonnen.","Gavebudsjett og sporing",{"$nulls":3},"Fyll ut så mye du kan i begynnelsen av hvert nytt år. Skriv inn navn på familie og venner, velg gaveanledning, velg arrangementmåned, og skriv inn hvor mye du vil bruke. Hver person kan vises flere ganger i tabellen for hver enkelt anledning (fødselsdag, ferie, dusj osv.)."]
["Månedsoversikt-etiketten er i cellen til høyre og tips er i celle D2.","Månedlig oversikt",null,"Bruk grafen til å se på de kommende månedene for å planlegge fremover. Logg kjøpene dine for å spore dem mot budsjettet."]
["Stolpediagram for budsjetterte beløp med linjediagramoverlegg for brukt beløp er i celle til høyre.","Stolpediagram for budsjetterte beløp med linjediagramoverlegg for brukt beløp er i denne cellen."]
["Etiketten for gavebudsjett og sporing er i cellen til høyre.","Gavebudsjett og sporing"]
["Skriv inn detaljer i tabellen Budsjettsporing som starter i cellen til høyre.","Hvem","Anledning","Måned","Beløp\nbudsjettert","Beløp\nbrukt","Gave","Kobling til gave","I butikk/\nPå nett","Kjøpt?","Innpakket?","Levert?","Notater"]
[null,"Navn 1","Bursdager","Juni",{"v":50,"d":"kr 50"},{"v":30,"d":"kr 30"},"Sko","Selger","På nett","Ja","Nei","Nei","16. juni, filmbilletter"]
[null,"Navn 2","Jubileer","April",{"v":20,"d":"kr 20"},{"v":20,"d":"kr 20"},"En katt","Selger","I butikk","Nei","Nei","Nei","Han nevnte at han liker hunder"]
[null,"Navn 3","Helligdager","Juli",{"v":50,"d":"kr 50"},{"v":70,"d":"kr 70"},"Hodetelefoner","Selger","På nett","Nei","Nei","Nei","Studenthjemrelatert"]
[null,"Navn 4","Bursdager","Januar",{"v":20,"d":"kr 20"},{"v":30,"d":"kr 30"},"Spill","Selger","I butikk","Ja","Ja","Ja"]
[null,"Navn 5","Bryllup","Juni",{"v":100,"d":"kr 100"},{"v":150,"d":"kr 150"},"Krystallvase","Selger","I butikk","Ja","Ja","Nei"]

{"sheet":"Data","index":2,"n_rows":13,"n_cols":8,"rows_kept":13,"hidden":true}
["Anledninger",null,"Dato","Dato","Budsjettert beløp\nBursdager","Budsjettert beløp\nHelligdager","Budsjettert beløp\nAnnet","Brukt beløp"]
["Bursdager",null,"Januar","Jan",{"$f":"SUMIFS(BudgetTracker[Beløp\nbudsjettert],BudgetTracker[Måned],\"Januar\",BudgetTracker[Anledning],\"Bursdager\")","v":{"v":20,"d":"kr 20"}},{"$f":"SUMIFS(BudgetTracker[Beløp\nbudsjettert],BudgetTracker[Måned],\"Januar\",BudgetTracker[Anledning],\"Helligdager\")","v":{"v":0,"d":"kr 0"}},{"$f":"SUMIFS(BudgetTracker[Beløp\nbudsjettert],BudgetTracker[Måned],\"Januar\",BudgetTracker[Anledning],\"<>Helligdager\",BudgetTracker[Anledning],\"<>Bursdager\")","v":{"v":0,"d":"kr 0"}},{"$f":"SUMIFS(BudgetTracker[Beløp\nbrukt],BudgetTracker[Måned],\"Januar\")","v":{"v":30,"d":"kr 30"}}]
["Helligdager",null,"Februar","Feb",{"$f":"SUMIFS(BudgetTracker[Beløp\nbudsjettert],BudgetTracker[Måned],\"Februar\",BudgetTracker[Anledning],\"Bursdager\")","v":{"v":0,"d":"kr 0"}},{"$f":"SUMIFS(BudgetTracker[Beløp\nbudsjettert],BudgetTracker[Måned],\"Februar\",BudgetTracker[Anledning],\"Helligdager\")","v":{"v":0,"d":"kr 0"}},{"$f":"SUMIFS(BudgetTracker[Beløp\nbudsjettert],BudgetTracker[Måned],\"Februar\",BudgetTracker[Anledning],\"<>Helligdager\",BudgetTracker[Anledning],\"<>Bursdager\")","v":{"v":0,"d":"kr 0"}},{"$f":"SUMIFS(BudgetTracker[Beløp\nbrukt],BudgetTracker[Måned],\"Februar\")","v":{"v":0,"d":"kr 0"}}]
["Jubileer",null,"Mars","Mar",{"$f":"SUMIFS(BudgetTracker[Beløp\nbudsjettert],BudgetTracker[Måned],\"Mars\",BudgetTracker[Anledning],\"Bursdager\")","v":{"v":0,"d":"kr 0"}},{"$f":"SUMIFS(BudgetTracker[Beløp\nbudsjettert],BudgetTracker[Måned],\"Mars\",BudgetTracker[Anledning],\"Helligdager\")","v":{"v":0,"d":"kr 0"}},{"$f":"SUMIFS(BudgetTracker[Beløp\nbudsjettert],BudgetTracker[Måned],\"Mars\",BudgetTracker[Anledning],\"<>Helligdager\",BudgetTracker[Anledning],\"<>Bursdager\")","v":{"v":0,"d":"kr 0"}},{"$f":"SUMIFS(BudgetTracker[Beløp\nbrukt],BudgetTracker[Måned],\"Mars\")","v":{"v":0,"d":"kr 0"}}]
["Bryllup",null,"April","Apr",{"$f":"SUMIFS(BudgetTracker[Beløp\nbudsjettert],BudgetTracker[Måned],\"April\",BudgetTracker[Anledning],\"Bursdager\")","v":{"v":0,"d":"kr 0"}},{"$f":"SUMIFS(BudgetTracker[Beløp\nbudsjettert],BudgetTracker[Måned],\"April\",BudgetTracker[Anledning],\"Helligdager\")","v":{"v":0,"d":"kr 0"}},{"$f":"SUMIFS(BudgetTracker[Beløp\nbudsjettert],BudgetTracker[Måned],\"April\",BudgetTracker[Anledning],\"<>Helligdager\",BudgetTracker[Anledning],\"<>Bursdager\")","v":{"v":20,"d":"kr 20"}},{"$f":"SUMIFS(BudgetTracker[Beløp\nbrukt],BudgetTracker[Måned],\"April\")","v":{"v":20,"d":"kr 20"}}]
["Bridal Showers",null,"Mai","Mai",{"$f":"SUMIFS(BudgetTracker[Beløp\nbudsjettert],BudgetTracker[Måned],\"Mai\",BudgetTracker[Anledning],\"Bursdager\")","v":{"v":0,"d":"kr 0"}},{"$f":"SUMIFS(BudgetTracker[Beløp\nbudsjettert],BudgetTracker[Måned],\"Mai\",BudgetTracker[Anledning],\"Helligdager\")","v":{"v":0,"d":"kr 0"}},{"$f":"SUMIFS(BudgetTracker[Beløp\nbudsjettert],BudgetTracker[Måned],\"Mai\",BudgetTracker[Anledning],\"<>Helligdager\",BudgetTracker[Anledning],\"<>Bursdager\")","v":{"v":0,"d":"kr 0"}},{"$f":"SUMIFS(BudgetTracker[Beløp\nbrukt],BudgetTracker[Måned],\"Mai\")","v":{"v":0,"d":"kr 0"}}]
["Baby Showers",null,"Juni","Jun",{"$f":"SUMIFS(BudgetTracker[Beløp\nbudsjettert],BudgetTracker[Måned],\"Juni\",BudgetTracker[Anledning],\"Bursdager\")","v":{"v":50,"d":"kr 50"}},{"$f":"SUMIFS(BudgetTracker[Beløp\nbudsjettert],BudgetTracker[Måned],\"Juni\",BudgetTracker[Anledning],\"Helligdager\")","v":{"v":0,"d":"kr 0"}},{"$f":"SUMIFS(BudgetTracker[Beløp\nbudsjettert],BudgetTracker[Måned],\"Juni\",BudgetTracker[Anledning],\"<>Helligdager\",BudgetTracker[Anledning],\"<>Bursdager\")","v":{"v":100,"d":"kr 100"}},{"$f":"SUMIFS(BudgetTracker[Beløp\nbrukt],BudgetTracker[Måned],\"Juni\")","v":{"v":180,"d":"kr 180"}}]
["Eksamener",null,"Juli","Jul",{"$f":"SUMIFS(BudgetTracker[Beløp\nbudsjettert],BudgetTracker[Måned],\"Juli\",BudgetTracker[Anledning],\"Bursdager\")","v":{"v":0,"d":"kr 0"}},{"$f":"SUMIFS(BudgetTracker[Beløp\nbudsjettert],BudgetTracker[Måned],\"Juli\",BudgetTracker[Anledning],\"Helligdager\")","v":{"v":50,"d":"kr 50"}},{"$f":"SUMIFS(BudgetTracker[Beløp\nbudsjettert],BudgetTracker[Måned],\"Juli\",BudgetTracker[Anledning],\"<>Helligdager\",BudgetTracker[Anledning],\"<>Bursdager\")","v":{"v":0,"d":"kr 0"}},{"$f":"SUMIFS(BudgetTracker[Beløp\nbrukt],BudgetTracker[Måned],\"Juli\")","v":{"v":70,"d":"kr 70"}}]
["Annet",null,"August","Aug",{"$f":"SUMIFS(BudgetTracker[Beløp\nbudsjettert],BudgetTracker[Måned],\"August\",BudgetTracker[Anledning],\"Bursdager\")","v":{"v":0,"d":"kr 0"}},{"$f":"SUMIFS(BudgetTracker[Beløp\nbudsjettert],BudgetTracker[Måned],\"August\",BudgetTracker[Anledning],\"Helligdager\")","v":{"v":0,"d":"kr 0"}},{"$f":"SUMIFS(BudgetTracker[Beløp\nbudsjettert],BudgetTracker[Måned],\"August\",BudgetTracker[Anledning],\"<>Helligdager\",BudgetTracker[Anledning],\"<>Bursdager\")","v":{"v":0,"d":"kr 0"}},{"$f":"SUMIFS(BudgetTracker[Beløp\nbrukt],BudgetTracker[Måned],\"August\")","v":{"v":0,"d":"kr 0"}}]
[null,null,"September","Sep",{"$f":"SUMIFS(BudgetTracker[Beløp\nbudsjettert],BudgetTracker[Måned],\"September\",BudgetTracker[Anledning],\"Bursdager\")","v":{"v":0,"d":"kr 0"}},{"$f":"SUMIFS(BudgetTracker[Beløp\nbudsjettert],BudgetTracker[Måned],\"September\",BudgetTracker[Anledning],\"Helligdager\")","v":{"v":0,"d":"kr 0"}},{"$f":"SUMIFS(BudgetTracker[Beløp\nbudsjettert],BudgetTracker[Måned],\"September\",BudgetTracker[Anledning],\"<>Helligdager\",BudgetTracker[Anledning],\"<>Bursdager\")","v":{"v":0,"d":"kr 0"}},{"$f":"SUMIFS(BudgetTracker[Beløp\nbrukt],BudgetTracker[Måned],\"September\")","v":{"v":0,"d":"kr 0"}}]
[null,null,"Oktober","Okt",{"$f":"SUMIFS(BudgetTracker[Beløp\nbudsjettert],BudgetTracker[Måned],\"Oktober\",BudgetTracker[Anledning],\"Bursdager\")","v":{"v":0,"d":"kr 0"}},{"$f":"SUMIFS(BudgetTracker[Beløp\nbudsjettert],BudgetTracker[Måned],\"Oktober\",BudgetTracker[Anledning],\"Helligdager\")","v":{"v":0,"d":"kr 0"}},{"$f":"SUMIFS(BudgetTracker[Beløp\nbudsjettert],BudgetTracker[Måned],\"Oktober\",BudgetTracker[Anledning],\"<>Helligdager\",BudgetTracker[Anledning],\"<>Bursdager\")","v":{"v":0,"d":"kr 0"}},{"$f":"SUMIFS(BudgetTracker[Beløp\nbrukt],BudgetTracker[Måned],\"Oktober\")","v":{"v":0,"d":"kr 0"}}]
[null,null,"November","Nov",{"$f":"SUMIFS(BudgetTracker[Beløp\nbudsjettert],BudgetTracker[Måned],\"November\",BudgetTracker[Anledning],\"Bursdager\")","v":{"v":0,"d":"kr 0"}},{"$f":"SUMIFS(BudgetTracker[Beløp\nbudsjettert],BudgetTracker[Måned],\"November\",BudgetTracker[Anledning],\"Helligdager\")","v":{"v":0,"d":"kr 0"}},{"$f":"SUMIFS(BudgetTracker[Beløp\nbudsjettert],BudgetTracker[Måned],\"November\",BudgetTracker[Anledning],\"<>Helligdager\",BudgetTracker[Anledning],\"<>Bursdager\")","v":{"v":0,"d":"kr 0"}},{"$f":"SUMIFS(BudgetTracker[Beløp\nbrukt],BudgetTracker[Måned],\"November\")","v":{"v":0,"d":"kr 0"}}]
[null,null,"Desember","Des",{"$f":"SUMIFS(BudgetTracker[Beløp\nbudsjettert],BudgetTracker[Måned],\"Desember\",BudgetTracker[Anledning],\"Bursdager\")","v":{"v":0,"d":"kr 0"}},{"$f":"SUMIFS(BudgetTracker[Beløp\nbudsjettert],BudgetTracker[Måned],\"Desember\",BudgetTracker[Anledning],\"Helligdager\")","v":{"v":0,"d":"kr 0"}},{"$f":"SUMIFS(BudgetTracker[Beløp\nbudsjettert],BudgetTracker[Måned],\"Desember\",BudgetTracker[Anledning],\"<>Helligdager\",BudgetTracker[Anledning],\"<>Bursdager\")","v":{"v":0,"d":"kr 0"}},{"$f":"SUMIFS(BudgetTracker[Beløp\nbrukt],BudgetTracker[Måned],\"Desember\")","v":{"v":0,"d":"kr 0"}}]